bitfinex-derivatives/quotes_ETHF0:USTF0_20241004
["timestamp","ask_amount","ask_price","bid_price","bid_amount"]
[1728047817449,1.8672,2393.9,2393.5,4.261]
[1728047817641,2.28504,2393.9,2393.5,1.001]
[1728047817844,0.41785,2393.8,2393.7,0.41785]
[1728047818440,3.26,2393.8,2393.3,4.25263]
[1728047818745,0.41789,2393.6,2393.2,3.89328]
[1728047819055,1.008,2393.5,2393.4,0.41792]
[1728047821244,5.49284,2393.9,2393.7,0.41786]
[1728047821442,7.381,2394.2,2393.8,0.41785]
[1728047821638,0.9693,2394.1,2393.6,0.9769]
[1728047821944,1.04458,2393.9,2393.3,0.209]
[1728047822146,0.41788,2393.6,2393.5,0.41788]
[1728047822350,0.41791,2393.5,2393.4,0.41791]
[1728047822554,0.41791,2393.5,2393.4,0.41792]
[1728047822555,1.38721,2393.5,2393.4,0.41792]
[1728047822846,1.3872,2393.5,2393.2,1.8474]
[1728047823252,0.9693,2393.5,2393.2,1.8474]
[1728047823446,0.9693,2393.5,2393.4,0.41792]
[1728047823843,1.3872,2393.5,2393.4,0.41792]
[1728047824149,0.9693,2393.5,2393.4,0.41792]
[1728047824365,1.3872,2393.5,2393.3,0.41792]
[1728047824554,1.3872,2393.5,2393.3,0.41793]
[1728047824753,2.0279,2393.4,2393.3,0.41793]
[1728047826947,3.26,2393.4,2393.1,3.2078]
[1728047827155,6.64373,2393.4,2393.2,0.41795]
[1728047827449,0.41793,2393.3,2393.1,3.2078]
[1728047827755,0.41793,2393.3,2393.2,0.41795]
[1728047828049,6.64373,2393.4,2393.3,0.41793]
[1728047830146,2.9658,2393.4,2393.3,0.41793]
[1728047830351,3.26,2393.6,2393.3,0.41793]
[1728047830554,5.2465,2393.6,2393.5,0.4179]
[1728047830950,9.4241,2393.6,2393.5,0.4179]
[1728047831445,9.84198,2393.6,2393.5,0.4179]
[1728047832251,5.66438,2393.6,2393.5,0.4179]
[1728047835854,1.9865,2393.6,2393.5,0.4179]
[1728047837956,2.40438,2393.6,2393.5,0.4179]
[1728047838154,0.4179,2393.5,2392.9,3.40286514]
[1728047838356,3.26,2393.3,2392.9,0.14286514]
[1728047838551,0.41801,2392.9,2392.7,1.9962]
[1728047838753,3.26,2392.9,2392.3,3.2078]
[1728047838956,2.944,2392.8,2392.7,0.41804]
[1728047840866,2.944,2392.8,2392.5,0.41807]
[1728047841154,0.41809,2392.4,2392.3,0.14387951]
[1728047841354,0.41813,2392.2,2392.0,0.41815]
[1728047841558,5.2975,2392.3,2391.8,0.991]
[1728047841762,1.0171,2392.3,2392.2,0.41812]
[1728047842060,8.4014,2392.7,2392.5,0.41807]
[1728047842255,8.4014,2392.7,2392.6,0.41805]
[1728047842256,2.0375,2392.7,2392.6,0.41805]
[1728047843157,1.0171,2392.7,2392.6,0.41805]
[1728047843355,4.2497,2393.0,2392.9,0.418]
[1728047844763,0.9897,2393.0,2392.9,0.418]
[1728047844965,6.4678,2393.5,2392.9,4.1792]
[1728047845168,1.8807,2393.5,2393.4,0.41792]
[1728047846751,3.26,2393.7,2393.1,0.9973]
[1728047846957,3.67787,2393.7,2393.5,0.41789]
[1728047847361,3.67787,2393.7,2393.1,2.0422]
[1728047847556,0.41788,2393.6,2393.4,0.41791]
[1728047847773,3.26,2393.5,2393.4,0.41792]
[1728047848083,5.2274,2393.5,2393.2,0.41795]
[1728047848268,5.2274,2393.5,2392.9,3.2078]
[1728047848459,3.67797,2393.1,2393.0,0.41798]
[1728047848662,3.26,2393.1,2393.0,0.41798]
[1728047849059,5.2274,2393.1,2392.7,2.0246]
[1728047849371,3.26,2392.9,2392.5,5.21916]
[1728047849676,0.9612,2392.8,2392.7,0.41804]
[1728047850369,3.26,2392.9,2392.8,0.41802]
[1728047850669,3.26,2392.9,2392.4,2.0246]
[1728047850863,3.26,2392.9,2392.8,0.41802]
[1728047851064,3.67801,2392.9,2392.8,0.41802]
[1728047851369,3.26,2392.9,2392.8,0.41802]
[1728047851579,3.678,2392.9,2392.7,0.41802]
[1728047852071,3.678,2392.9,2392.8,0.41802]
[1728047852271,3.26,2392.9,2392.8,0.41802]
[1728047852674,3.678,2392.9,2392.8,0.41802]
[1728047853067,3.26,2392.9,2392.8,0.41802]
[1728047853269,3.678,2392.9,2392.8,0.41802]
[1728047853476,3.26,2392.9,2392.8,0.41802]
[1728047853878,1.3792,2393.0,2392.8,0.41801]
[1728047854192,0.9612,2393.0,2392.9,0.418]
[1728047854982,1.37919,2393.0,2392.8,1.0154]
[1728047855166,0.9612,2393.0,2392.6,4.1739]
[1728047855374,3.67801,2392.9,2392.7,0.41802]
[1728047855776,3.26,2392.9,2392.8,0.41802]
[1728047856374,4.2212,2393.0,2392.6,3.2078]
[1728047856770,4.6392,2393.0,2392.9,0.418]
[1728047857169,4.2212,2393.0,2392.9,0.418]
[1728047857580,4.63919,2393.0,2392.9,0.418]
[1728047857891,4.2212,2393.0,2392.9,0.418]
[1728047858383,14.28845339,2393.4,2393.0,1.04497]
[1728047858684,0.9553,2393.3,2393.2,0.41795]
[1728047859182,1.37324,2393.3,2393.2,0.41795]
[1728047859876,0.9553,2393.3,2393.2,0.41795]
[1728047860381,0.41795,2393.2,2393.1,0.41796]
[1728047860680,3.26,2393.2,2392.6,4.34994]
[1728047860875,0.9553,2393.3,2392.6,3.2078]
[1728047860876,3.26,2392.7,2392.6,3.2078]
[1728047861070,3.26,2392.7,2392.6,3.62585]
[1728047861494,2.8727,2392.8,2392.6,3.2078]
[1728047861676,6.48953339,2393.3,2392.7,4.1792]
[1728047861677,3.26,2393.3,2392.7,4.1792]
[1728047861879,1.37933,2393.3,2393.2,0.41795]
[1728047862084,0.9614,2393.3,2393.2,0.41795]
[1728047862378,0.9824,2393.4,2393.3,0.41793]
[1728047862582,1.37928,2393.6,2393.5,0.4179]
[1728047862781,1.37928,2393.6,2393.2,2.8288]
[1728047863085,3.26,2393.4,2392.9,4.25281]
[1728047863383,3.26,2393.4,2393.1,0.41795]
[1728047863582,3.67796,2393.2,2393.0,0.41797]
[1728047863774,1.0117,2393.1,2393.0,0.41797]
[1728047864681,1.0117,2393.1,2392.8,0.9769]
[1728047864986,0.418,2392.9,2392.6,3.2078]
[1728047865183,4.2551,2392.8,2392.7,0.41802]
[1728047865383,4.2551,2392.8,2392.6,3.2078]
[1728047865384,4.67312,2392.8,2392.6,3.2078]
[1728047865582,4.67312,2392.8,2392.6,3.62584]
[1728047865583,1.0117,2392.7,2392.6,3.62584]
[1728047865880,1.42974,2392.7,2392.6,3.2078]
[1728047866390,0.41814,2392.1,2392.0,0.097]
[1728047866589,0.41816,2392.0,2391.9,3.62597]
[1728047866889,1.35856,2392.0,2391.9,3.62597]
[1728047867078,0.9404,2392.0,2391.9,3.62597]
[1728047867986,1.35856,2392.0,2391.9,3.2078]
[1728047868186,0.41818,2391.9,2391.7,0.4182]
[1728047868391,4.02,2391.9,2391.3,0.9951]
[1728047868582,4.02,2391.9,2391.2,2.15513967]
[1728047868781,0.41821,2391.8,2391.7,0.41821]
[1728047869286,0.41822,2391.7,2391.6,0.41821]
[1728047870090,0.4182,2391.8,2391.6,0.41821]
[1728047870489,0.41822,2391.7,2391.2,2.15511131]
[1728047870690,0.41822,2391.7,2391.5,0.41824]
[1728047870885,0.41821,2391.8,2391.5,0.41824]
[1728047871080,1.04549,2391.8,2391.1,3.2078]
[1728047871286,4.1482,2392.0,2390.9,0.23962708]
[1728047871287,4.02,2391.4,2390.9,0.23962708]
[1728047871486,4.02,2391.4,2390.6,1.04598]
[1728047871487,0.9433,2391.3,2390.6,1.04598]
[1728047871789,0.943,2391.2,2390.5,4.1331]
[1728047871981,4.02,2391.1,2390.8,0.41836]
[1728047872181,4.02,2391.1,2390.9,0.41834]
[1728047872384,4.02,2391.1,2390.5,4.1331]
[1728047872584,4.02,2391.1,2390.9,0.41834]
[1728047872780,4.02,2391.1,2390.5,4.1331]
[1728047873088,4.02,2391.1,2390.9,0.41835]
[1728047873289,0.943,2391.2,2391.1,0.41832]
[1728047875486,11.1254,2391.2,2390.5,0.13979864]
[1728047875686,0.4184,2390.6,2390.5,0.13979864]
[1728047876001,0.41851,2390.0,2389.9,0.097]
[1728047876293,0.41854,2389.9,2389.6,3.62637]
[1728047876890,0.41853,2389.9,2389.6,0.41857]
[1728047877091,0.41854,2389.8,2389.5,0.41859]
[1728047877292,0.41854,2389.9,2389.6,0.41857]
[1728047877500,0.41854,2389.9,2389.6,0.41858]
[1728047877694,4.02,2390.0,2389.3,3.2078]
[1728047877889,0.41855,2389.8,2389.5,0.41859]
[1728047878294,3.62634,2389.9,2389.6,0.41857]
[1728047878513,0.41854,2389.8,2389.6,0.41857]
[1728047878695,0.41854,2389.8,2389.5,0.41859]
[1728047879088,0.41854,2389.8,2389.3,3.2078]
[1728047879295,0.41854,2389.8,2389.6,0.41858]
[1728047879598,0.41848,2390.2,2389.4,0.41861]
[1728047879892,0.41848,2390.2,2389.9,0.41851]
[1728047880096,4.02,2390.2,2389.4,0.51561]
[1728047880388,4.02,2390.2,2389.7,0.41856]
[1728047880389,7.2278,2390.2,2389.7,0.41856]
[1728047880583,0.9974,2390.4,2389.3,3.2078]
[1728047880584,7.2278,2389.9,2389.3,3.2078]
[1728047880806,4.4386,2389.5,2389.3,3.62642]
[1728047881481,0.41867,2389.1,2388.9,0.4187]
[1728047881688,4.02,2389.1,2388.9,0.4187]
[1728047881883,4.02,2389.1,2388.8,0.41871]
[1728047881884,0.41869,2389.0,2388.8,0.41871]
[1728047882295,4.02,2389.1,2388.4,4.2124]
[1728047882498,0.41869,2389.0,2388.8,0.41872]
[1728047882792,0.41869,2389.0,2388.7,0.41873]
[1728047882991,5.9592,2389.1,2388.4,2.05156]
[1728047883187,5.9592,2389.1,2388.4,5.25936]
[1728047883404,5.9592,2389.1,2388.6,1.04689]
[1728047883692,0.9883,2389.1,2388.4,5.25936]
[1728047883899,0.9883,2389.1,2388.9,0.4187]
[1728047884100,4.02,2389.3,2388.5,1.0469]
[1728047884291,4.02,2389.3,2388.7,4.25463]
[1728047884596,0.9509,2389.4,2389.2,0.41864]
[1728047884792,0.9509,2389.4,2389.3,0.41863]
[1728047884984,3.2078,2389.5,2389.2,0.41863]
[1728047885184,3.2078,2389.5,2389.3,0.41862]
[1728047885592,3.2078,2389.5,2389.4,0.41861]
[1728047885795,3.2078,2389.5,2389.0,4.2252]
[1728047885988,3.2078,2389.5,2389.4,0.41861]
[1728047886500,3.2078,2389.5,2389.1,1.04666]
[1728047886501,1.0262,2389.6,2389.0,6.22829]
[1728047886802,1.0262,2389.6,2389.4,0.4186]
[1728047887792,1.0262,2389.6,2389.0,5.1816]
[1728047887997,8.58393,2389.9,2389.6,0.41857]
[1728047888193,8.58393,2389.9,2389.1,1.14368]
[1728047888389,8.58393,2389.9,2389.6,0.41858]
[1728047888892,0.41855,2389.8,2389.5,0.41859]
[1728047889102,8.58394,2389.9,2389.5,0.41858]
[1728047889293,8.1654,2389.9,2389.5,0.41858]
[1728047889496,8.58393,2389.9,2389.6,0.41857]
[1728047889799,4.1454,2389.9,2389.3,3.2078]
[1728047890201,4.1454,2389.9,2389.7,0.41856]
[1728047890391,3.2078,2389.9,2389.7,0.41856]
[1728047890590,3.2078,2389.9,2389.3,3.2078]
[1728047890793,0.41855,2389.8,2389.6,0.41857]
[1728047890993,0.41857,2389.7,2389.4,0.41861]
[1728047891296,0.41861,2389.5,2389.3,3.2078]
[1728047891504,1.0465,2389.5,2388.9,0.097]
[1728047891703,4.02,2389.3,2389.2,0.41865]
[1728047892202,0.9396,2389.4,2389.3,0.41863]
[1728047892399,0.9396,2389.4,2388.9,1.04675]
[1728047892400,0.41856,2389.7,2389.2,0.41865]
[1728047892599,0.41856,2389.7,2389.5,0.4186]
[1728047892806,5.43656,2389.8,2389.5,0.4186]
[1728047893006,4.02,2389.8,2389.7,0.41856]
[1728047893418,4.56591,2390.0,2389.4,4.25431]
[1728047893419,4.56591,2390.0,2389.8,0.41854]
[1728047893906,4.1474,2390.0,2389.8,0.41854]
[1728047894102,0.41854,2389.9,2389.6,0.41857]
[1728047894307,0.41857,2389.7,2389.5,0.41859]
[1728047894605,4.02,2389.8,2389.4,1.0258]
[1728047894811,4.02,2389.8,2389.6,0.41857]
[1728047895011,4.43855,2389.8,2389.4,1.0258]
[1728047895199,4.02,2389.8,2389.4,1.0258]
[1728047895805,4.02,2389.8,2389.6,0.41857]
[1728047896006,4.02,2389.8,2389.4,1.0258]
[1728047896300,4.02,2389.8,2389.4,4.2336]
[1728047896504,4.02,2389.8,2389.6,0.41857]
[1728047896914,4.02,2389.8,2389.7,0.41856]
[1728047897109,4.02,2389.8,2389.6,0.41857]
[1728047897512,4.02,2389.8,2389.7,0.41856]
[1728047898604,4.43854,2389.8,2389.6,0.41857]
[1728047898805,4.02,2389.8,2389.4,4.2336]
[1728047899008,4.43855,2389.8,2389.5,0.41858]
[1728047899204,0.41858,2389.6,2389.1,5.37687]
[1728047899420,0.4186,2389.5,2389.3,0.41862]
[1728047899902,0.4186,2389.5,2389.1,3.2078]
[1728047899903,0.9622,2389.5,2389.1,3.2078]
[1728047900106,1.3808,2389.5,2389.3,0.41862]
[1728047900337,0.9622,2389.5,2389.4,0.41861]
[1728047902613,0.9622,2389.5,2389.1,4.1383]
[1728047902812,4.02,2389.3,2389.1,3.2078]
[1728047903114,4.43864,2389.3,2389.1,3.62646]
[1728047903311,4.02,2389.3,2389.1,3.2078]
[1728047903636,4.43865,2389.3,2389.1,3.62647]
[1728047903916,0.41865,2389.2,2389.1,3.62647]
[1728047904117,0.41865,2389.2,2389.1,3.2078]
[1728047904607,0.41871,2388.9,2388.7,0.41872]
[1728047904805,0.6809,2388.8,2388.7,0.41872]
[1728047905013,1.09963,2388.8,2388.6,0.41874]
[1728047905316,0.6809,2388.8,2388.2,4.5281]
[1728047905613,0.6303,2388.7,2388.6,0.41875]
[1728047906007,0.6809,2388.8,2388.7,0.41874]
[1728047907001,4.8673,2388.8,2388.5,0.41876]
[1728047907208,4.02,2388.6,2388.2,3.8465]
[1728047907447,4.02,2388.3,2388.2,3.62662]
[1728047907809,5.08618,2388.5,2388.2,3.2078]
[1728047908323,4.25466,2388.7,2388.6,0.41874]
[1728047908324,0.41874,2388.7,2388.6,0.41874]
[1728047908521,0.41874,2388.7,2388.6,0.41875]
[1728047908818,4.7009,2388.8,2388.7,0.41874]
[1728047909114,5.11962,2388.8,2388.6,0.41875]
[1728047909319,5.11963,2388.8,2388.6,0.41874]
[1728047909709,4.7009,2388.8,2388.7,0.41874]
[1728047909909,4.7009,2388.8,2388.3,1.7302]
[1728047910111,4.7009,2388.8,2388.4,1.04698]
[1728047910314,4.7009,2388.8,2388.3,1.3511]
[1728047910514,4.7009,2388.8,2388.3,0.6832]
[1728047910718,4.02,2388.5,2388.2,3.2078]
[1728047911019,4.43877,2388.5,2388.2,3.2078]
[1728047911218,4.02,2388.5,2388.2,3.2078]
[1728047911410,4.02,2388.5,2388.4,0.41879]
[1728047911617,4.43878,2388.5,2388.3,0.4188]
[1728047911811,4.02,2388.5,2388.4,0.41879]
[1728047912212,4.43878,2388.5,2388.3,0.41879]
[1728047912414,4.02,2388.5,2388.4,0.41879]
[1728047913223,0.41874,2388.7,2388.3,1.72549]
[1728047913411,4.7009,2388.8,2388.3,1.72549]
[1728047913412,5.11963,2388.8,2388.6,0.41875]
[1728047913608,4.1864,2388.7,2388.6,0.41875]
[1728047914205,5.11963,2388.8,2388.3,1.72549]
[1728047914206,4.7009,2388.8,2388.3,1.72549]
[1728047914515,4.7009,2388.8,2388.7,0.41874]
[1728047915219,0.6809,2388.8,2388.7,0.41874]
[1728047918718,4.7009,2388.8,2388.3,1.3074]
[1728047919017,4.7009,2388.8,2388.2,1.04706]
[1728047919218,5.11962,2388.8,2388.7,0.41874]
[1728047919614,4.7009,2388.8,2388.6,0.41874]
[1728047919912,5.74771,2388.8,2388.5,0.41876]
[1728047920230,5.74771,2388.8,2388.2,2.36566]
[1728047920409,0.41874,2388.7,2388.6,0.41875]
[1728047920810,4.60514,2388.7,2388.6,0.41875]
[1728047922125,0.41878,2388.5,2388.4,0.41878]
[1728047922419,4.02,2388.5,2388.4,0.41878]
[1728047922623,0.41879,2388.4,2388.3,0.41879]
[1728047922922,1.69539,2388.4,2388.3,0.41879]
[1728047923118,1.2766,2388.4,2388.3,0.41879]
[1728047923550,1.69539,2388.4,2388.3,0.41879]
[1728047923715,1.2766,2388.4,2388.3,0.41879]
[1728047924113,1.2766,2388.4,2388.2,0.41881]
[1728047924114,0.41881,2388.3,2388.2,0.41881]
[1728047924323,1.03711,2388.3,2388.2,0.41881]
[1728047924628,0.6183,2388.3,2388.2,0.41881]
[1728047925227,8.0133,2388.3,2387.8,3.2078]
[1728047925420,8.0133,2388.3,2387.9,0.41886]
[1728047925421,0.41886,2388.1,2387.9,0.41886]
[1728047925615,0.41886,2388.1,2387.8,3.2078]
[1728047925616,4.02,2388.2,2388.1,0.41884]
[1728047925819,49.06492,2388.3,2388.2,0.41883]
[1728047926125,0.658,2388.4,2388.0,1.04715]
[1728047926422,4.02,2388.5,2388.4,0.41879]
[1728047927424,4.02,2388.5,2388.1,4.25489]
[1728047927624,4.43878,2388.5,2388.3,0.41879]
[1728047927927,4.43878,2388.5,2388.3,0.4188]
[1728047928420,0.41883,2388.2,2388.0,0.41884]
[1728047928621,4.02,2388.2,2388.1,0.41883]
[1728047929129,4.02,2388.4,2387.9,1.72769]
[1728047929324,4.43876,2388.4,2388.2,0.41878]
[1728047929822,4.43876,2388.4,2388.0,1.46587]
[1728047930129,4.02,2388.4,2388.3,0.41877]
[1728047930521,8.2072,2388.4,2388.3,0.41877]
[1728047931133,8.62595,2388.4,2388.3,0.41877]
[1728047931427,0.41877,2388.3,2388.2,0.41878]
[1728047931730,3.27,2388.3,2388.2,0.41878]
[1728047932115,3.68877,2388.3,2388.2,0.41878]
[1728047932319,3.27,2388.3,2388.2,0.41878]
[1728047932717,3.68877,2388.3,2388.2,0.41878]
[1728047933435,3.27,2388.3,2387.9,0.6805]
[1728047933724,3.27,2388.0,2387.9,0.41883]
[1728047936830,3.27,2388.0,2387.8,3.2078]
[1728047936831,0.41884,2387.9,2387.8,3.2078]
[1728047937131,0.41884,2387.9,2387.5,3.6267]
[1728047937132,1.04714,2387.8,2387.5,3.6267]
[1728047937333,4.30638,2387.7,2387.5,3.6267]
[1728047937537,4.5105,2387.7,2387.5,3.2078]
[1728047937734,4.5105,2387.7,2387.6,0.41889]
[1728047937925,4.92938,2387.7,2387.6,0.41889]
[1728047938329,0.41889,2387.6,2387.5,3.6267]
[1728047938525,4.31725,2387.6,2387.0,0.097]
[1728047938729,3.27,2387.1,2386.9,4.2553]
[1728047938927,3.27,2387.1,2387.0,0.41899]
[1728047939124,3.27,2387.1,2387.0,4.60859]
[1728047939330,3.27,2387.1,2387.0,0.41899]
[1728047939866,3.27,2387.1,2386.9,3.2078]
[1728047940230,3.68899,2387.1,2386.9,3.2078]
[1728047940431,3.27,2387.1,2386.9,3.2078]
[1728047940834,1.2847,2387.2,2386.9,3.2078]
[1728047940835,0.6672,2387.2,2387.1,0.41898]
[1728047941034,3.27,2387.3,2387.2,0.41896]
[1728047941632,4.02,2387.3,2387.2,0.41896]
[1728047941832,3.875,2387.5,2387.0,0.6525]
[1728047942062,0.6672,2387.5,2387.3,0.41892]
[1728047942243,8.5599,2387.6,2387.2,3.2078]
[1728047942244,8.141,2387.6,2387.5,0.41891]
[1728047942436,4.02,2387.8,2387.7,0.41886]
[1728047942636,0.6392,2387.9,2387.8,0.41885]
[1728047942842,4.43881,2388.1,2387.9,0.41883]
[1728047943032,4.02,2388.1,2387.9,0.41883]
[1728047943235,4.02,2388.1,2387.6,2.35412]
[1728047943438,4.43881,2388.1,2387.6,1.3069]
[1728047943643,4.02,2388.1,2388.0,0.41882]
[1728047944038,4.02,2388.1,2387.6,2.35412]
[1728047944244,4.02,2388.1,2388.0,0.41882]
[1728047944444,4.43881,2388.1,2387.9,0.41884]
[1728047944645,4.02,2388.1,2387.5,3.2078]
[1728047944942,4.02,2387.7,2387.2,3.9359]
[1728047945156,0.41894,2387.3,2387.2,3.2078]
[1728047945362,4.02,2387.4,2387.2,0.41895]
[1728047945363,4.43893,2387.4,2387.2,0.41895]
[1728047945555,4.43893,2387.4,2386.9,4.25533]
[1728047945556,4.8621,2387.3,2386.9,3.2078]
[1728047945748,4.8621,2387.3,2386.9,3.62681]
[1728047945749,4.02,2387.0,2386.9,3.62681]
[1728047946249,4.6933,2387.3,2387.2,0.41896]
[1728047947848,4.6933,2387.3,2386.9,4.25533]
[1728047947849,8.8821,2387.3,2386.9,3.2078]
[1728047948157,0.41899,2387.0,2386.9,3.2078]
[1728047948563,0.6489,2387.0,2386.6,0.41906]
[1728047948859,0.6489,2387.0,2386.5,4.5512]
[1728047949259,0.41901,2386.9,2386.7,0.41903]
[1728047949651,0.41901,2386.9,2386.6,0.41905]
[1728047949958,0.41901,2386.9,2386.6,0.41906]
[1728047950146,1.06791,2387.0,2386.8,0.41902]
[1728047950348,0.6489,2387.0,2386.9,0.41901]
[1728047951358,0.6733,2387.3,2387.2,0.41896]
[1728047951561,1.09224,2387.3,2386.8,4.25534]
[1728047951856,1.09225,2387.3,2387.1,0.41896]
[1728047952062,1.09225,2387.3,2387.2,0.41896]
[1728047952063,0.6733,2387.3,2387.2,0.41896]
[1728047952551,4.02,2387.4,2387.2,0.41896]
[1728047952757,4.02,2387.4,2387.3,0.41894]
[1728047952958,0.41894,2387.3,2387.1,3.62677]
[1728047953158,4.43894,2387.4,2387.1,0.41896]
[1728047953460,4.43894,2387.4,2387.0,1.3403]
[1728047953669,0.6567,2387.5,2387.0,0.6781]
[1728047953861,1.07561,2387.5,2387.3,0.41893]
[1728047954063,0.41896,2387.2,2387.1,3.2078]
[1728047955174,4.02,2387.4,2387.1,3.2078]
[1728047955352,0.6567,2387.5,2387.1,3.2078]
[1728047955562,0.6567,2387.5,2387.4,0.41892]
[1728047955758,4.02,2387.6,2387.5,0.41891]
[1728047955963,5.9963,2387.9,2387.4,3.2078]
[1728047956160,7.04341,2387.9,2387.5,0.4189]
[1728047956360,4.02,2387.7,2387.4,3.2078]
[1728047956665,4.02,2387.7,2387.5,0.41889]
[1728047956666,4.43888,2387.7,2387.5,0.41889]
[1728047956867,0.41889,2387.6,2387.4,0.41891]
[1728047957068,4.43888,2387.7,2387.5,0.4189]
[1728047957466,4.02,2387.7,2387.6,0.41889]
[1728047957665,4.02,2387.7,2387.2,1.2889]
[1728047957862,0.41891,2387.5,2387.3,0.41893]
[1728047958162,0.6401,2387.4,2387.3,0.41893]
[1728047958564,1.05902,2387.4,2387.3,0.41893]
[1728047958866,4.6601,2387.4,2387.1,3.2078]
[1728047959180,0.41895,2387.3,2387.1,3.2078]
[1728047959466,0.41896,2387.2,2387.1,3.2078]
[1728047959664,0.6407,2387.3,2387.1,3.2078]
[1728047959665,1.3013,2387.3,2387.1,3.2078]
[1728047959863,0.6407,2387.3,2387.2,0.41896]
[1728047961869,0.6407,2387.3,2387.1,3.2078]
[1728047962066,1.05966,2387.3,2387.2,0.41896]
[1728047962662,1.05965,2387.3,2387.2,0.41896]
[1728047962857,0.6407,2387.3,2387.2,0.41896]
[1728047963059,1.05964,2387.3,2387.2,0.41896]
[1728047963663,0.6407,2387.3,2387.2,0.41896]
[1728047963863,0.41896,2387.2,2387.1,3.62676]
[1728047964071,0.41896,2387.2,2387.1,3.2078]
[1728047964371,4.60776,2387.2,2387.1,3.2078]
[1728047964570,1.04753,2387.0,2386.6,0.097]
[1728047964867,4.43906,2386.7,2386.6,0.41906]
[1728047965166,0.41906,2386.6,2386.5,3.62687]
[1728047965561,0.41906,2386.6,2386.5,0.41907]
[1728047965767,4.02,2386.7,2386.2,0.6163]
[1728047965964,0.4191,2386.5,2386.4,0.41909]
[1728047966169,0.4191,2386.5,2386.1,3.2078]
[1728047966374,1.02351,2386.4,2386.3,0.4191]
[1728047967066,0.6044,2386.4,2386.3,0.4191]
[1728047968472,4.02,2387.0,2386.9,0.419]
[1728047968764,1.14441,2387.2,2387.0,0.41898]
[1728047968765,0.41897,2387.2,2387.0,0.41898]
[1728047968967,4.7932,2387.2,2386.5,0.097]
[1728047969171,0.41901,2387.0,2386.5,1.0477]
[1728047969374,0.41901,2387.0,2386.8,0.41901]
[1728047969569,0.419,2387.0,2386.9,0.41901]
[1728047969763,4.02,2387.1,2386.8,0.41902]
[1728047969962,0.41901,2386.9,2386.8,0.41902]
[1728047970162,0.6361,2387.0,2386.4,2.91545]
[1728047970469,0.41902,2386.9,2386.8,0.41903]
[1728047970667,0.41905,2386.7,2386.6,0.41906]
[1728047970867,0.41905,2386.7,2386.4,1.2578]
[1728047971074,0.41905,2386.7,2386.6,0.41906]
[1728047971272,0.6496,2386.7,2386.6,0.41906]
[1728047971766,1.06865,2386.7,2386.6,0.41906]
[1728047971964,0.6496,2386.7,2386.6,0.41906]
[1728047972371,1.06865,2386.7,2386.6,0.41906]
[1728047972561,0.6496,2386.7,2386.6,0.41906]
[1728047973269,1.69726,2386.7,2386.2,3.2078]
[1728047973471,0.41909,2386.5,2386.4,0.41909]
[1728047973970,5.71726,2386.7,2386.2,3.2078]
[1728047974169,4.6696,2386.7,2386.2,3.2078]
[1728047974362,0.41908,2386.6,2386.2,3.2078]
[1728047974567,0.6496,2386.7,2386.6,0.41906]
[1728047975365,0.6496,2386.7,2386.3,1.0478]
[1728047975669,0.6496,2386.7,2386.6,0.41906]
[1728047976171,4.6561,2387.0,2386.2,3.2078]
[1728047976391,5.3044,2387.0,2386.6,3.2078]
[1728047976569,0.41903,2386.8,2386.7,0.41904]
[1728047976870,5.7234,2387.0,2386.9,0.41901]
[1728047977267,5.3044,2387.0,2386.9,0.41901]
[1728047977466,0.6483,2387.0,2386.9,0.41901]
[1728047977773,4.669,2387.3,2386.6,4.4644]
[1728047977989,0.649,2387.3,2387.2,0.41896]
[1728047978277,0.41896,2387.2,2387.1,0.41896]
[1728047978470,0.649,2387.3,2387.2,0.41896]
[1728047978664,1.06794,2387.3,2387.2,0.41896]
[1728047978874,0.6483,2387.4,2387.2,0.41896]
[1728047979082,0.41894,2387.3,2386.9,4.25533]
[1728047979369,0.41898,2387.1,2386.9,3.6268]
[1728047979593,0.41898,2387.1,2386.6,1.3536]
[1728047979594,4.02,2387.2,2386.6,1.2566]
[1728047979774,0.41898,2387.1,2387.0,0.41899]
[1728047979968,0.41899,2387.1,2386.9,0.419]
[1728047980168,4.02,2387.2,2386.6,1.2566]
[1728047980365,0.41901,2386.9,2386.8,0.41902]
[1728047980572,4.6512,2387.0,2386.4,3.3048]
[1728047980764,0.6446,2386.8,2386.2,2.28944]
[1728047980961,4.43911,2386.4,2386.3,0.41912]
[1728047981177,0.41905,2386.7,2386.6,0.41905]
[1728047982275,0.41905,2386.7,2386.3,0.6476]
[1728047982475,0.41905,2386.7,2386.6,0.41906]
[1728047982869,4.6646,2386.8,2386.7,0.41905]
[1728047982870,5.08364,2386.8,2386.7,0.41905]
[1728047983072,4.6646,2386.8,2386.7,0.41905]
[1728047983375,5.08363,2386.8,2386.7,0.41905]
[1728047983570,4.6646,2386.8,2386.7,0.41905]
[1728047983974,5.08363,2386.8,2386.7,0.41905]
[1728047984280,4.6646,2386.8,2386.7,0.41905]
[1728047984574,5.08363,2386.8,2386.7,0.41905]
[1728047984776,0.41906,2386.7,2386.6,0.41906]
[1728047985170,0.41905,2386.7,2386.5,0.41907]
[1728047985377,0.41906,2386.6,2386.5,0.41907]